Cogmind - Beta 17.1 @@@ ROGUE MODE // 2026.09.07 @ 17:13:42 Player: MORONI274 Result: Destroyed by Y-45 Defender with Heavy Assault Rifle Performance ------------- Evolutions (2) 1000 Regions Visited (4) 800 Robots Destroyed (14) 70 Value Destroyed (226) 226 Prototype IDs (0) 0 Alien Tech Used (0) 0 Bonus (0) 0 TOTAL SCORE: 2096 Bonus ------- None Cogmind --------- Core Integrity 0/550 Matter 12/300 Energy 0/100 System Corruption 0% Temperature Cool (0) Movement Core (150) Ox2 Location -8/Materials Parts ------- > --- POWER (1) -------- (None) > --- PROPULSION (4) --- (None) > --- UTILITY (3) ------ Small Storage Unit Advanced Targeting Computer > --- WEAPON (3) ------- EMP Blaster > --- INVENTORY (8) ---- Light Ion Engine Peak State ------------ > --- POWER ------------ Light Deuterium Engine > --- PROPULSION ------- (None) > --- UTILITY ---------- Small Storage Unit Advanced Targeting Computer > --- WEAPON ----------- Light Assault Rifle > --- INVENTORY -------- Light Ion Engine [Rating: 8] Favorites ----------- Power Light Ion Engine Engine Light Ion Engine Propulsion Hover Unit Hover Unit Hover Unit Utility Small Storage Unit Device Sensor Array Storage Small Storage Unit Processor Advanced Targeting Computer Weapon Beam Rifle Energy Gun Beam Rifle Ballistic Gun Light Assault Rifle Launcher Grenade Launcher Build | -11 -10 -10 -9 -8 ------- Run | Yrd Mat Min Mat Mat Slots Evolved 4 | . . . 2 2 Power . | . . . . . Propulsion 2 | . . . 2 . Utility 1 | . . . . 1 Weapon 1 | . . . . 1 Parts Attached 11 | . 1 . 5 5 Power 2 | . . . 1 1 Engine 2 | . . . 1 1 Core . | . . . . . Reactor . | . . . . . Propulsion 1 | . . . 1 . Treads . | . . . . . Leg . | . . . . . Wheel . | . . . . . Hover 1 | . . . 1 . Flight . | . . . . . Utility 3 | . . . 2 1 Device 1 | . . . 1 . Storage 1 | . . . 1 . Processor 1 | . . . . 1 Hackware . | . . . . . Protection . | . . . . . Artifact . | . . . . . Weapon 5 | . 1 . 1 3 Energy Gun 1 | . . . 1 . Energy Cannon . | . . . . . Ballistic Gun 1 | . . . . 1 Ballistic Cannon . | . . . . . Launcher 3 | . 1 . . 2 Special Weapon . | . . . . . Impact Weapon . | . . . . . Slashing Weapon . | . . . . . Piercing Weapon . | . . . . . Special Melee Weapon . | . . . . . Unidentified Prototypes . | . . . . . Parts Lost 7 | . . . 1 6 Power 2 | . . . . 2 Propulsion 1 | . . . . 1 Utility 1 | . . . . 1 Weapon 3 | . . . 1 2 Highest Loss Streak 4 | . . . 1 4 To Critical Strikes . | . . . . . Average Backups 1 | . . . 1 2 Power . | . . . . 1 Propulsion . | . . . . . Utility . | . . . . . Weapon . | . . . . . Tool/Special . | . . . . . Unused Backups 1 | . . . . 1 Power 1 | . . . . 1 Propulsion . | . . . . . Utility . | . . . . . Weapon . | . . . . . Tool/Special . | . . . . . Average Slot Usage (%) 31 | . 3 14 38 30 Engine 6 | . . . 8 5 Hover 5 | . . . 8 4 Device 2 | . . . . 4 Storage 6 | . . . 7 7 Energy Gun 4 | . . . 5 5 Launcher 4 | . 3 14 9 . Peak Build Rating 8 | . 1 1 6 8 Average Rating 3 | . . 1 4 4 On Entrance 1 | . . 1 1 6 Avg Prop Armor Cover (%) . | . . . . . Naked Turns 54 | . 27 . . 27 Heaviest Build 14 | . 3 3 14 13 Greatest Support 6 | 3 3 3 6 6 Greatest Overweight (x) 3 | . . . 2 3 Average Overweight (x) . | . . . . . Largest Inventory Capacity 8 | 5 5 5 8 8 Average Capacity 6 | 5 5 5 7 7 Most Carried 5 | . 1 . 3 5 Average Carried 2 | . . . 1 2 Final Capacity 8 | 5 5 5 8 8 Final Carried 2 | . . . 2 1 Class Distribution -------------------- 100% | Mutant Dominant Class ---------------- Mutant | -10/Materials Mutant | -10/Mines Mutant | -9/Materials Mutant | -8/Materials Resources | -11 -10 -10 -9 -8 ----------- Run | Yrd Mat Min Mat Mat Matter Collected 80 | . . 4 49 27 Remotely . | . . . . . Salvage Created 172 | . . 32 80 60 Parts 14 | . . . 11 3 Haulers Intercepted . | . . . . . Recyclers Shooed 1 | . . . 1 . Parts Field Recycled . | . . . . . Retrieved Matter . | . . . . . Parts Self-Destructed . | . . . . . Prevented . | . . . . . Parts Restored . | . . . . . Kills | -11 -10 -10 -9 -8 ------- Run | Yrd Mat Min Mat Mat Combat Hostiles Destroyed 10 | . . 3 5 2 Guns 1 | . . . 1 . AOE 9 | . . 3 4 2 Classes Destroyed 5 | . . 1 4 . Builder 1 | . . . 1 . Operator 1 | . . . 1 . Watcher 2 | . . . 1 1 Swarmer 9 | . . 3 4 2 Grunt 1 | . . . 1 . Best Kill Streak 7 | . . 3 7 2 Combat Bots Only 4 | . . 3 4 2 Max Kills in Single Turn 3 | . . 3 2 2 Gunslinging . | . . . . . Exploded 3 | . . 3 2 2 Melee . | . . . . . Uniques/NPCs Destroyed . | . . . . . Combat | -11 -10 -10 -9 -8 -------- Run | Yrd Mat Min Mat Mat Hostile Shots Fired 115 | . . 2 7 106 Missed 33 | . . 1 1 31 Hits 82 | . . 1 6 75 Melee 1 | . . . . 1 Projectile 81 | . . 1 6 74 Critical Strikes 4 | . . . . 4 Damage Taken 1136 | . . 131 57 948 Core 661 | . . 83 21 557 Absorbed by Shields . | . . . . . Core Remaining (%) 86 | 100 . 66 94 . Volleys Fired 25 | . . 1 10 14 Largest 1 | . . 1 1 1 Hottest 56 | . . 30 56 56 Shots Fired 25 | . . 1 10 14 Gun 16 | . . . 5 11 Cannon . | . . . . . Launcher 9 | . . 1 5 3 Special . | . . . . . Kinetic 8 | . . . . 8 Thermal 8 | . . . 5 3 Explosive 6 | . . 1 5 . Electromagnetic 3 | . . . . 3 Robot Hit Streak 15 | . . . 2 15 Robot Miss Streak 1 | . . 1 1 . Penetration Max . | . . . . . Secondary Targets . | . . . . . Shots Hit Robots 17 | . . . 4 13 Core Hits 16 | . . 2 7 7 Critical Kills . | . . . . . Critical Parts Destroyed . | . . . . . Critical Strikes . | . . . . . Melee Attacks . | . . . . . Impact . | . . . . . Slashing . | . . . . . Piercing . | . . . . . Sneak Attacks . | . . . . . Combat Hostiles . | . . . . . Follow-up Attacks . | . . . . . Damage Inflicted 877 | . . 131 479 267 Guns 169 | . . . 59 110 Cannons . | . . . . . Explosions 693 | . . 131 420 142 Melee . | . . . . . Ramming 15 | . . . . 15 Kinetic 66 | . . . . 66 Thermal 103 | . . . 59 44 Explosive 551 | . . 131 420 . Electromagnetic 142 | . . . . 142 Impact . | . . . . . Slashing . | . . . . . Piercing . | . . . . . Highest Corruption . | . . . . . Average Corruption . | . . . . . Corruption Purged . | . . . . . Corruption Blocked . | . . . . . Overload Shots . | . . . . . Overflow Damage 132 | . . 42 89 1 Projectiles . | . . . . . Explosions 132 | . . 42 89 1 Melee . | . . . . . Knockbacks 1 | . . . . 1 Impact 1 | . . . . 1 Kinetic . | . . . . . Secondary . | . . . . . Self-Inflicted Damage 135 | . . 125 . 10 Shots 4 | . . 3 . 1 Rammed 5 | . . . . 5 Targets Rammed 5 | . . . . 5 Kicked . | . . . . . Crushed . | . . . . . Highest Temperature 84 | . . 14 84 58 Average Temperature 31 | . . 9 43 24 Received Heat Transfer 438 | . . . 24 414 Siege Activations . | . . . . . Martial Activations . | . . . . . Shielding Activations . | . . . . . Robots Disrupted . | . . . . . Combat Hostiles . | . . . . . Robots Corrupted . | . . . . . Combat Hostiles . | . . . . . Parts Fried . | . . . . . Impact Corruptions . | . . . . . Robots Melted . | . . . . . Combat Hostiles . | . . . . . Parts Melted . | . . . . . Heat Transferred 259 | . . . 148 111 Parts Sabotaged . | . . . . . Parts Stolen . | . . . . . Parts Stripped . | . . . . . Power Chain Reactions . | . . . . . Alert | -11 -10 -10 -9 -8 ------- Run | Yrd Mat Min Mat Mat Maximum Alert Level . | . . . . . Low Security (%) 100 | 100 100 100 100 100 Level 1 . | . . . . . Level 2 . | . . . . . Level 3 . | . . . . . Level 4 . | . . . . . Level 5 . | . . . . . High Security . | . . . . . Max Security . | . . . . . Peak Influence 168 | . . 114 168 140 Initial 53 | . . . 44 53 Average 82 | . . 108 125 55 Influence Increases 490 | . . 114 194 182 Destroy 0b10 Robot/C 200 | . . 60 100 40 Destroy 0b10 Robot/NC 20 | . . . 15 5 Destroy Leader 34 | . . 10 22 2 Disable Machine 60 | . . 30 . 30 Destroy Structure 41 | . . 14 27 . Lose Combat Pursuer 135 | . . . 30 105 Influence Decreases 375 | . . . 180 195 Entered New Map 145 | . . . 70 75 Time Decay 190 | . . . 100 90 Lost Part 40 | . . . 10 30 Squads Dispatched 3 | . . . 1 2 Investigation 1 | . . . . 1 Extermination . | . . . . . Reinforcement 2 | . . . 1 1 Assault . | . . . . . Garrison . | . . . . . Intercept . | . . . . . Searches Triggered . | . . . . . Construction Impeded . | . . . . . Haulers Reinforced . | . . . . . Active Scanning Responses . | . . . . . Cargo Convoy Interrupts . | . . . . . Stealth | -11 -10 -10 -9 -8 --------- Run | Yrd Mat Min Mat Mat Distress Signals . | . . . . . Communications Jammed . | . . . . . Distress Signals . | . . . . . Times Spotted 32 | . . 3 9 20 Peak Tracking Total 10 | . . 3 5 10 Tactical Retreats 4 | . . . 1 3 Traps | -11 -10 -10 -9 -8 ------- Run | Yrd Mat Min Mat Mat Traps Triggered 1 | . . . . 1 Indirectly . | . . . . . Trap Hack Attempts . | . . . . . Triggered . | . . . . . Disarmed . | . . . . . Reprogrammed . | . . . . . Reused . | . . . . . Traps Extracted . | . . . . . Installed . | . . . . . Triggered . | . . . . . Machines | -11 -10 -10 -9 -8 ---------- Run | Yrd Mat Min Mat Mat Machines Disabled 4 | . . 2 . 2 Max in Single Turn 2 | . . 2 . 1 Machines Repaired . | . . . . . Machines Dismantled . | . . . . . Machines Sabotaged . | . . . . . Overloaded Fab Kills . | . . . . . Hacking | -11 -10 -10 -9 -8 --------- Run | Yrd Mat Min Mat Mat Machines Accessed 1 | . . . 1 . Terminals 1 | . . . 1 . Fabricators . | . . . . . Repair Stations . | . . . . . Recycling Units . | . . . . . Scanalyzers . | . . . . . Garrison Access . | . . . . . Total Hacks 1 | . . . 1 . Successful 1 | . . . 1 . Failed . | . . . . . Catastrophic . | . . . . . Database Lockouts . | . . . . . Manual . | . . . . . Terminals 1 | . . . 1 . Fabricators . | . . . . . Repair Stations . | . . . . . Recycling Units . | . . . . . Scanalyzers . | . . . . . Garrison Access . | . . . . . Terminal Hacks 1 | . . . 1 . Alert Level 1 | . . . 1 . Fabricator Hacks . | . . . . . Repair Station Hacks . | . . . . . Recycling Unit Hacks . | . . . . . Scanalyzer . | . . . . . Garrison Access Hacks . | . . . . . Unauthorized Hacks . | . . . . . Terminals . | . . . . . Fabricators . | . . . . . Repair Stations . | . . . . . Recycling Units . | . . . . . Scanalyzers . | . . . . . Garrison Access . | . . . . . Data Cores Recovered 1 | . . . 1 . Used . | . . . . . Hacking Detections . | . . . . . Full Trace Events . | . . . . . Feedback Events . | . . . . . Feedback Blocked . | . . . . . Robot Schematics Acquired . | . . . . . Robots Built . | . . . . . Authchips . | . . . . . Time . | . . . . . Total Robot Build Rating . | . . . . . Part Schematics Acquired . | . . . . . Parts Built . | . . . . . Authchips . | . . . . . Time . | . . . . . Total Part Build Rating . | . . . . . Part Studies Acquired . | . . . . . Parts Repaired . | . . . . . Time . | . . . . . Parts Recycled . | . . . . . Recycled Matter . | . . . . . Retrieved Matter . | . . . . . Retrieved Components . | . . . . . Parts Scanalyzed . | . . . . . Part Schematics Acquired . | . . . . . Parts Damaged . | . . . . . Bothacking | -11 -10 -10 -9 -8 ------------ Run | Yrd Mat Min Mat Mat Used RIF Installer . | . . . . . Robots Hacked . | . . . . . Non-combat . | . . . . . Combat . | . . . . . Robot Hacks Applied . | . . . . . Relay Couplers Released . | . . . . . Fabnet Peak Effective % . | . . . . . Robots Rewired . | . . . . . Allies Hacked . | . . . . . Hacks Repelled . | . . . . . Allies | -11 -10 -10 -9 -8 -------- Run | Yrd Mat Min Mat Mat Total Allies . | . . . . . Largest Group . | . . . . . Highest-Rated Group . | . . . . . Highest-Rated Ally . | . . . . . Total Orders . | . . . . . Ally Attacks . | . . . . . Total Damage . | . . . . . Kills . | . . . . . Allies Corrupted . | . . . . . Allies Melted . | . . . . . Intel | -11 -10 -10 -9 -8 ------- Run | Yrd Mat Min Mat Mat Active Infowar (turns) 109 | . . . 5 104 Sensors 109 | . . . 5 104 Robot Analysis Total . | . . . . . Derelict Logs Recovered . | . . . . . Drone Launches . | . . . . . Drone Recoveries . | . . . . . Exploration | -11 -10 -10 -9 -8 ------------- Run | Yrd Mat Min Mat Mat Turns Passed 486 | 9 39 19 210 209 Spaces Moved 474 | 18 74 34 184 164 Core 276 | 18 74 34 63 87 Treads . | . . . . . Legs . | . . . . . Wheels . | . . . . . Hover 198 | . . . 121 77 Flight . | . . . . . Fastest Speed 50 | 50 50 50 50 50 Average Speed 85 | 50 50 50 97 97 Slowest Speed 200 | 50 50 50 180 200 Overloaded Moves . | . . . . . Propulsion Burnouts . | . . . . . Robots Hopped . | . . . . . Potential Cave-ins . | . . . . . Cave-ins Triggered . | . . . . . Exploration Rate (%) 13 | 3 14 13 22 16 Regions Visited 4 Branch Regions 1 Pre-discovered Areas . | . . . . . Known Exits Taken . | . . . . . Unknown Exits Taken 4 | 1 1 1 1 . Scrap Searched . | . . . . . Spaces Dug . | . . . . . Terrain Destroyed 41 | . . 14 27 . Melee . | . . . . . Projectile . | . . . . . AOE 41 | . . 14 27 . Terrain Rammed . | . . . . . Walls Destroyed . | . . . . . Machines Disabled . | . . . . . Actions | -11 -10 -10 -9 -8 --------- Run | Yrd Mat Min Mat Mat Total 531 | 17 75 34 203 202 Wait 5 | . . . . 5 Move 470 | 17 73 33 183 164 Hop . | . . . . . Pick Up 8 | . 1 . 5 2 Fast Attach 4 | . . . 2 2 Attach 10 | . 1 . 3 6 Detach 3 | . . . . 3 Swap . | . . . . . Drop 1 | . . . . 1 Fire 25 | . . 1 10 14 Melee . | . . . . . Ram 5 | . . . . 5 Kick . | . . . . . Crush . | . . . . . Escape Stasis . | . . . . . Rewire . | . . . . . Trap . | . . . . . Miscellaneous . | . . . . . Route ------- -11/Scrapyard -10/Materials -10/Mines -9/Materials (discovered 2 exits: *Mat / [*Min]) -8/Materials History --------- Turn | Location | Event 4 | -11/Scrapyard | Discovered new exit (range 13) 10 | -11/Scrapyard | Entered Materials 41 | -10/Materials | Discovered new exit (range 16) 49 | -10/Materials | Entered Mines 65 | -10/Mines | Discovered new exit (range 6) 68 | -10/Mines | Entered Materials 68 | -9/Materials | Evolved 2 slots: Propulsion x2 122 | -9/Materials | Discovered new exit (range 8) 189 | -9/Materials | Discovered new exit (range 3) 278 | -9/Materials | Entered another Materials area 278 | -8/Materials | Evolved 2 slots: Utility x1, Weapon x1 313 | -8/Materials | Build established: Mutant 423 | -8/Materials | Core integrity fell below 50% 425 | -8/Materials | Lost 4 parts (1p1n1u1w) 451 | -8/Materials | Core integrity fell below 20% 487 | -8/Materials | Destroyed by Y-45 Defender with Heavy Assault Rifle Last Messages --------------- 00400_ O-24 Administrator locks terminal. 00400_ Acquired Shock Bomb Launcher. 00402_ S-10 Pest destroyed. 00402_ Destroyed Flight Unit. 00402_ S-10 Pest destroyed. 00402_ Door malfunctions. 00402_ Terminal disabled. 00408_ Dropped Shock Bomb Launcher. 00410_ S-10 Pest IFF system glitched. 00420_ Slammed into L-31 Rogue. 00421_ Slammed into G-47 Trooper. 00448_ Critical hit (Burn: +37). 00454_ Lgt. Assault Rifle destroyed. 00454_ Critical hit (Burn: +37). 00454_ Lgt. Deuterium Engine destroyed. 00457_ Slammed into G-47 Trooper. 00457_ G-47 Trooper knocked back. 00461_ K-01 Serf collects debris. 00483_ Acquired EMP Blaster. 00485_ Terminal disabled. Map ----- +----------------------------------------------------+ | | | | | | | | | | | | | | | | | | | | | | | | | | | ?????????????????????????????????????????????????? | | ?????????????????????????????????????????????????? | | ?????????????????????#########??##########???????? | | ?????????????????????# #??# #???????? | | ?????????????????????# #??# """ #???????? | | ?????????????????????# ] #??# """ !#???????? | | ????????????????????## #??# """ #???????? | | ????????????????????# Y #### #?????### | | ???????????########### + # """ #?????# | | ???????????# "T" # ! ! l# # """ #??#### | | ???????????# # # # """ #??# # | | ???????????# # ]*/ # # #??# # | | ???????????# """" # @* # #####+####### + | | ????#####??# """" # */ # # | | ????# #??# """" ######### # | | ????# #??# #???????# ########+#/##### | | ????# #??# #######?# # """"" ]# ## | | ????# ##########+### #?# # " "" # #### | | ????# #?# # # #??? | | ????# T #?# "%% # #??? | | ????# #?# # = # #??? | | ????#######+########## #?# # """ # #??? | | ????????# #?????## ##?# # """ # #??? | | ????????# "T" #??????# #??# # """ # #??? | | ????????# #??????# #??# #! # #??? | | ????????# #??????# #??# ###############??? | | ????????# #??????# #??# #########????????? | | ????????# #??????# #??# ## #???????? | | ????????########??????# #??# ## """ #???????? | | ??????????????????????# #??# ## """ #???????? | | ??????????????????????# #??# ## """ #???????? | | ??????????????????????# #??# ## #???????? | | ??????????????????????# #### ## """ #???????? | | ??????????????????????# # """ #???????? | | ??????????????????????# / """ #???????? | | ??????????????????????# # #???????? | | ??????????????????????######## # #???????? | +----------------------------------------------------+ Best States ------------- Heat Dissipation 31 Energy Generation 14 Energy Capacity 140 Matter Stores 100 Matter Capacity 300 Sight Range 16 Robot Scan Range 14 Terrain Scan Density 10 Evasion (%) 53 Targeting Accuracy 8 Item Schematics ----------------- None Robot Schematics ------------------ None Fabricated ------------ Nothing Repaired ---------- Nothing Studied --------- None Alien Tech Used ----------------- None Achievements -------------- None Challenges ------------ None Game ------ Seed ShrapnelPowerArachnoskeleton Manual? 0 Play Time 00:09:14 Cumulative 14.9 hours Start 2026.09.07 @ 17:07:00 End 2026.09.07 @ 17:13:42 Sessions 1 Manual Loads 0 Difficulty Rogue Special Mode None Game No. 33 Rogue 33 Adventurer 0 Explorer 0 Win Type - Total 0 Types 0/0/0/0/0/0/0/0/0/0 Lore% 10 Gallery% 16 Achievement% 14 Wizard Run 0 Options --------- Layout 1 ASCII 0 Keyboard 0 Movement Arrows Keybinds 0 Fullscreen 2 Font 24/Smallcaps Map View 50x35 Zoom Use 0% Tactical HUD 1 Map Filters NONE Filters NONE Steam 1 RUN: 6bc4b350-49d7-4a1c-ba1f-97af1721941d